Cogmind - Beta 15 @@@ ROGUE MODE // 2025.05.28 @ 20:46:17 Player: Komeiji O. Result: Destroyed by P-80 Master with Gamma Rifle Performance ------------- Evolutions (8) 4000 Regions Visited (14) 2800 Robots Destroyed (148) 740 Value Destroyed (7022) 7022 Prototype IDs (46) 920 Alien Tech Used (2) 400 Bonus (5983) 5983 TOTAL SCORE: 21865 Bonus ------- High Alert Combat Kills 460 Follower Combat Kills 2332 Registered with UFD 300 Met Zhirov 300 Built Enhanced Grunts 300 A7 Reached Mainframe 300 Met R17 at Cetus 500 Met R17 at Research 2000 Friendly Fire -509 Cogmind --------- Core Integrity 0/1450 Matter 236/300 Energy 318/600 System Corruption 25% Temperature Cool (0) Movement Core (50) Location -2/Research Parts ------- > --- POWER (2) -------- (None) > --- PROPULSION (6) --- (None) > --- UTILITY (10) ----- Advanced Energy Well Advanced Signal Interpreter > --- WEAPON (5) ------- (None) > --- INVENTORY (5) ---- Advanced Force Field Authchip [Device] Railgun Heavy Proton Missile Launcher Peak State ------------ > --- POWER ------------ Compact Particle Reactor Quantum Reactor > --- PROPULSION ------- Armored Heavy Treads Centrium Heavy Treads Centrium Heavy Treads > --- UTILITY ---------- Advanced Heat Sink Advanced Heat Sink Large Storage Unit Long-range Sensor Array Advanced Signal Interpreter Improved Targeting Computer Centrium Medium Armor Plating Advanced Shield Generator Advanced Force Field Advanced System Shield > --- WEAPON ----------- Cooled Plasma Rifle Advanced Variable Charge Gun KE Penetrator KE Penetrator Railgun > --- INVENTORY -------- Centrium Wheel Centrium Wheel Advanced Heat Sink Advanced Energy Well Heavy Armor Plating Centrium Medium Armor Plating Advanced Point Defense System Long-range Tractor Beam Transdimensional Reconstructor Variable Charge Gun Railgun Heavy Proton Missile Launcher Enhanced Force Lance Vortex Trap [Rating: 167] Favorites ----------- Power Quantum Reactor Engine Subdweller Power Source Power Core Light Nuclear Core Reactor Quantum Reactor Propulsion Centrium Heavy Treads Treads Centrium Heavy Treads Leg Carbon-fiber Leg Wheel Wheel Hover Unit Antigrav System Flight Unit VTOL Module Utility Large Storage Unit Device Advanced Heat Sink Storage Large Storage Unit Processor Improved Targeting Computer Hackware Hacking Suite Protection Improved Powered Armor Weapon KE Penetrator Energy Gun Advanced Variable Charge Gun Energy Cannon Subdweller Beam Cannon Ballistic Gun KE Penetrator Ballistic Cannon Light Cannon Launcher Heavy Proton Missile Launcher Impact Weapon Flail Slashing Weapon Makeshift Axe Piercing Weapon Enhanced Force Lance Build | -11 -10 -10 -7 -5 -5 -5 -5 -4 -4 -4 -4 -3 -3 -2 ------- Run | Yrd Mat Sub Scr Fac Ext Cet Arc Fac Upp Upp Zhi Pro Res Res Slots Evolved 16 | . . . . 10 . . . 2 . . . . 2 2 Power 1 | . . . . 1 . . . . . . . . . . Propulsion 4 | . . . . 3 . . . 1 . . . . . . Utility 8 | . . . . 5 . . . . . . . . 2 1 Weapon 3 | . . . . 1 . . . 1 . . . . . 1 Parts Attached 166 | 7 6 14 2 54 27 13 . 6 2 . 4 1 13 17 Power 21 | 1 1 3 . 7 4 2 . . . . 1 . 1 1 Engine 12 | 1 1 3 . 3 4 . . . . . . . . . Core 5 | . . . . 4 . . . . . . 1 . . . Reactor 4 | . . . . . . 2 . . . . . . 1 1 Propulsion 43 | 2 . 4 . 17 10 3 . 1 . . . . 2 4 Treads 9 | 2 . 1 . . . 2 . 1 . . . . 2 1 Leg 12 | . . . . 3 8 . . . . . . . . 1 Wheel 10 | . . 3 . 3 1 1 . . . . . . . 2 Hover 10 | . . . . 9 1 . . . . . . . . . Flight 2 | . . . . 2 . . . . . . . . . . Utility 63 | 2 2 2 1 19 8 5 . 4 2 . 3 1 6 8 Device 39 | 1 1 2 1 10 5 3 . 3 2 . 1 1 4 5 Storage 3 | 1 1 . . . . . . . . . 1 . . . Processor 4 | . . . . 1 1 . . 1 . . . . . 1 Hackware 2 | . . . . 1 . . . . . . . . 1 . Protection 15 | . . . . 7 2 2 . . . . 1 . 1 2 Artifact . | . . . . . . . . . . . . . . . Weapon 39 | 2 3 5 1 11 5 3 . 1 . . . . 4 4 Energy Gun 15 | 2 2 2 . 5 . 2 . . . . . . . 2 Energy Cannon 2 | . . 1 . . 1 . . . . . . . . . Ballistic Gun 15 | . . 1 . 5 3 1 . 1 . . . . 3 1 Ballistic Cannon 1 | . 1 . . . . . . . . . . . . . Launcher 2 | . . . . . 1 . . . . . . . 1 . Special Weapon . | . . . . . . . . . . . . . . . Impact Weapon 1 | . . 1 . . . . . . . . . . . . Slashing Weapon 2 | . . . 1 1 . . . . . . . . . . Piercing Weapon 1 | . . . . . . . . . . . . . . 1 Special Melee Weapon . | . . . . . . . . . . . . . . . Unidentified Prototypes 17 | . 1 . . 2 . 4 . . . . 4 . 4 2 Parts Lost 79 | . . 6 . 18 18 . . 3 . . . . 6 28 Power 9 | . . 1 . 3 3 . . . . . . . . 2 Propulsion 21 | . . 2 . 6 5 . . . . . . . . 8 Utility 31 | . . 2 . 6 7 . . 1 . . . . 4 11 Weapon 18 | . . 1 . 3 3 . . 2 . . . . 2 7 Highest Loss Streak 17 | . . 2 . 7 9 . . 3 . . . . 2 17 To Critical Strikes 1 | . . . . . . . . . . . . . . 1 Average Backups 11 | 3 9 12 11 10 10 11 10 10 12 12 13 13 11 11 Power . | . . . . . . . . . 1 1 . . . . Propulsion 1 | 1 2 1 1 . 3 2 2 2 2 2 2 2 2 1 Utility 4 | . 3 5 4 5 2 4 4 4 4 5 6 7 5 4 Weapon 3 | . 2 4 4 3 3 3 4 3 4 4 3 3 2 3 Tool/Special . | . . . . . . . . . . . . . . . Unused Backups 19 | . 4 4 2 1 . 1 . 1 1 1 . . . 4 Power 1 | . 1 . . . . . . . . . . . . . Propulsion 6 | . 1 2 . . . . . 1 . . . . . 2 Utility 5 | . 1 1 1 1 . . . . . . . . . 1 Weapon 6 | . 1 1 1 . . . . . 1 1 . . . 1 Tool/Special 1 | . . . . . . 1 . . . . . . . . Average Slot Usage (%) 88 | . 100 98 89 81 90 91 88 83 84 84 63 84 83 77 Engine 6 | . 14 13 14 3 9 5 . . . . . . . . Reactor 3 | . . . . . . 4 11 10 10 10 7 5 7 6 Treads 11 | . 28 20 5 . . 8 11 14 15 15 15 15 13 11 Leg 2 | . . . . 4 14 8 . . . . . . . . Wheel 5 | . . 7 22 2 . 2 5 . . . . . . . Hover 2 | . . . . 11 9 . . . . . . . . . Device 13 | . 14 12 3 14 20 11 11 10 14 15 14 15 16 17 Storage 8 | . 14 14 14 4 5 5 5 5 5 5 5 5 4 4 Processor 3 | . . . . . . 5 5 9 10 10 10 10 9 8 Hackware 1 | . . . . 2 5 5 5 . . . . . 2 3 Protection 3 | . . . . 7 5 10 11 9 5 5 5 5 6 3 Energy Gun 7 | . 22 14 . 5 . 3 5 6 10 10 . 10 4 5 Energy Cannon 2 | . . 1 14 1 2 . . . . . . . . . Ballistic Gun 6 | . . 3 . 7 13 12 11 12 10 10 . 10 13 11 Impact Weapon 1 | . . 6 . . . . . . . . . . . . Slashing Weapon 2 | . . . 13 1 . . . . . . . . . . Peak Build Rating 167 | 7 15 17 21 90 83 117 117 146 146 142 141 138 155 167 Average Rating 74 | 5 11 14 17 67 72 104 116 143 138 138 110 138 148 147 On Entrance 87 | . 7 14 14 21 83 75 117 117 146 138 142 141 138 153 Naked Turns . | . . . . . . . . . . . . . . . Heaviest Build 112 | 15 34 37 37 112 73 97 97 103 103 102 89 89 95 99 Greatest Support 240 | 40 40 40 30 59 80 160 160 240 240 240 240 240 240 220 Greatest Overweight (x) 11 | . . 3 3 11 3 5 . . . . . . . 1 Average Overweight (x) 1 | . . 1 2 2 . 1 . . . . . . . . Largest Inventory Capacity 15 | 8 15 15 15 15 15 15 15 15 15 15 15 15 15 15 Average Capacity 14 | 7 12 15 15 15 15 15 15 15 15 15 15 15 15 13 Most Carried 15 | 6 13 15 15 15 15 15 15 15 15 15 15 15 15 15 Average Carried 13 | 3 9 14 14 14 14 14 15 14 14 14 14 15 13 12 Final Capacity 15 | 8 15 15 15 15 15 15 15 15 15 15 15 15 15 5 Final Carried 15 | 6 13 15 15 15 15 15 15 15 14 15 15 15 15 4 Class Distribution -------------------- 45% | Scavenger-Tank 39% | Mutant 9% | Scavenger-Mutant Dominant Class ---------------- Mutant | -10/Materials Mutant | -10/Subcaves Mutant | -7/Scraptown Scavenger-Tank | -5/Factory Scavenger-Tank | -5/Extension Scavenger-Tank | -5/Cetus Scavenger-Tank | -5/Archives Scavenger-Tank | -4/Factory Scavenger-Tank | -4/Upper Caves Scavenger-Tank | -4/Upper Caves Scavenger-Mutant | -4/Zhirov Scavenger-Tank | -3/Proximity Caves Scavenger-Tank | -3/Research Scavenger-Tank | -2/Research Resources | -11 -10 -10 -7 -5 -5 -5 -5 -4 -4 -4 -4 -3 -3 -2 ----------- Run | Yrd Mat Sub Scr Fac Ext Cet Arc Fac Upp Upp Zhi Pro Res Res Matter Collected 4876 | 270 116 387 35 841 931 305 74 320 69 181 . 36 639 672 Remotely 496 | . . . . . 296 . . . . . . . . 200 Salvage Created 7898 | 88 295 610 . 1567 1323 179 123 707 . 76 . . 1132 1798 Parts 363 | 13 15 34 . 83 46 8 8 24 1 3 . . 31 97 Haulers Intercepted 2 | . . . . 1 . . . . . . . . 1 . Recyclers Shooed 8 | 1 . . . 3 3 . . . . . . . 1 . Parts Field Recycled . | . . . . . . . . . . . . . . . Retrieved Matter . | . . . . . . . . . . . . . . . Parts Self-Destructed 22 | . . 18 . . . . . . 1 3 . . . . Prevented 6 | . . . . . . . . . . 6 . . . . Kills | -11 -10 -10 -7 -5 -5 -5 -5 -4 -4 -4 -4 -3 -3 -2 ------- Run | Yrd Mat Sub Scr Fac Ext Cet Arc Fac Upp Upp Zhi Pro Res Res Combat Hostiles Destroyed 109 | . 6 13 . 22 18 3 1 9 2 1 . . 11 23 Melee 1 | . . . . . . . . . . . . . . 1 Guns 76 | . 4 10 . 15 8 3 1 7 2 1 . . 11 14 Cannons 10 | . 2 2 . 4 2 . . . . . . . . . AOE 14 | . . . . . 6 . . 1 . . . . . 7 Classes Destroyed 18 | 2 3 2 . 5 1 . 1 2 . . . . 2 . Worker 11 | 1 . . . 4 . . . 1 . . . . 1 4 Builder 10 | . 1 . . 5 . . . . . . . . . 4 Tunneler 4 | 4 . . . . . . . . . . . . . . Hauler 2 | . . . . 1 . . . . . . . . 1 . Recycler 5 | . . . . 1 1 . . . . . . . 2 1 Mechanic 1 | . . . . . . . . . . . . . 1 . Operator 1 | . . . . . . . 1 . . . . . . . Watcher 2 | . 1 . . 1 . . . . . . . . . . Swarmer 18 | . . 3 . 6 . . . . 2 . . . 3 4 Grunt 25 | . 6 2 . 1 9 . . 3 . 1 . . 3 . Brawler 1 | . . . . . 1 . . . . . . . . . Sentry 18 | . . . . 6 6 . 1 1 . . . . 2 2 Demolisher 1 | . . . . . . . . . . . . . 1 . Hunter 12 | . . . . 3 2 . . 1 . . . . 1 5 Programmer 22 | . . . . 6 . . . 3 . . . . 1 12 Behemoth 1 | . . . . . . . . 1 . . . . . . Cetus Guard 3 | . . . . . . 3 . . . . . . . . Subdweller 8 | . . 8 . . . . . . . . . . . . Scrapoid 2 | . . . . . . . . 2 . . . . . . Thug 1 | . . . . . 1 . . . . . . . . . Best Kill Streak 13 | 3 2 3 . 8 6 3 1 2 2 1 . . 6 13 Combat Bots Only 6 | . 2 3 . 4 6 3 1 2 2 1 . . 5 5 Max Kills in Single Turn 5 | 1 2 2 . 2 5 1 1 1 1 1 . . 2 3 Gunslinging 1 | . . . . . . . . . . . . . 1 1 Exploded 5 | . . . . . 5 . . 1 . . . . . 2 Melee 1 | . . . . . . . . . . . . . . 1 Uniques/NPCs Destroyed . | . . . . . . . . . . . . . . . Combat | -11 -10 -10 -7 -5 -5 -5 -5 -4 -4 -4 -4 -3 -3 -2 -------- Run | Yrd Mat Sub Scr Fac Ext Cet Arc Fac Upp Upp Zhi Pro Res Res Hostile Shots Fired 1245 | . 31 69 . 225 190 19 4 83 5 17 . . 132 470 Missed 337 | . 5 18 . 59 46 4 2 19 2 6 . . 45 131 Hits 908 | . 26 51 . 166 144 15 2 64 3 11 . . 87 339 Projectile 908 | . 26 51 . 166 144 15 2 64 3 11 . . 87 339 AOE 4 | . . . . . . . . 2 . . . . 2 . Critical Strikes 48 | . 1 1 . 10 7 1 1 2 . 1 . . 3 21 Part Disruptions 3 | . . . . 1 . . . . . . . . . 2 Damage Taken 20027 | . 361 997 . 3170 3342 338 67 2088 40 199 . . 1805 7620 Core 2343 | . 75 113 . 189 469 . . 39 . 68 . . 65 1325 Absorbed by Shields 714 | . . . . . 152 90 . . . . . . 37 435 Reduced by Siege Mode 384 | . . . . . . . . 115 . . . . 106 163 Regen/Repaired (Parts) 70 | . . . . 70 . . . . . . . . . . Core Remaining (%) 68 | 100 . . 24 . . . 34 . . . . 90 95 . Volleys Fired 388 | 10 25 39 . 70 57 8 6 36 2 7 . 7 58 63 Largest 5 | 2 2 2 . 4 3 3 3 4 4 4 . 4 4 5 Hottest 360 | 100 112 116 . 360 144 240 148 230 230 230 . 230 230 240 Shots Fired 950 | 20 50 78 . 184 134 19 16 92 8 28 . 18 148 155 Gun 879 | 20 43 71 . 168 106 19 16 90 8 28 . 18 148 144 Cannon 56 | . 7 7 . 16 26 . . . . . . . . . Launcher 15 | . . . . . 2 . . 2 . . . . . 11 Special . | . . . . . . . . . . . . . . . Kinetic 482 | . 7 17 . 79 106 18 12 58 4 14 . 4 72 91 Thermal 424 | 20 43 61 . 102 . 1 4 32 4 14 . 14 76 53 Explosive 4 | . . . . . 2 . . 2 . . . . . . Electromagnetic 40 | . . . . 3 26 . . . . . . . . 11 Robot Hit Streak 29 | 6 13 20 . 29 13 7 14 28 13 5 . . 26 14 Robot Miss Streak 4 | 1 2 2 . 3 3 1 2 3 3 4 . . 4 3 Penetration Max 2 | . . . . 1 2 1 . . . . . . 1 1 Secondary Targets 12 | . 1 2 . 2 1 . 1 . . . . . 2 3 Max Gunslinging Chain 2 | . 1 1 . 1 1 . 1 . . . . . 1 2 Shots Hit Robots 597 | 14 36 66 . 124 83 14 10 61 3 8 . . 93 85 Core Hits 289 | 4 14 25 . 58 45 10 4 27 2 3 . . 38 59 Critical Kills 9 | . . 1 . 2 . . 1 2 . . . . 2 1 Critical Parts Destroyed 21 | . . . . 3 4 . . 2 . 2 . . 5 5 Critical Strikes 50 | . 3 5 . 12 5 . 1 7 . 2 . . 7 8 Burn 15 | . 3 4 . 7 . . . . . . . . . 1 Meltdown 1 | . . 1 . . . . . . . . . . . . Destroy 33 | . . . . 5 5 . 1 7 . 2 . . 7 6 Impale 1 | . . . . . . . . . . . . . . 1 Melee Attacks 42 | . . 18 . 3 . . . . . . . . . 21 Impact 18 | . . 18 . . . . . . . . . . . . Slashing 3 | . . . . 3 . . . . . . . . . . Piercing 21 | . . . . . . . . . . . . . . 21 Sneak Attacks 1 | . . . . . . . . . . . . . . 1 Combat Hostiles . | . . . . . . . . . . . . . . . Follow-up Attacks . | . . . . . . . . . . . . . . . Damage Inflicted 20224 | 177 574 1221 . 3450 3686 483 240 2592 72 242 . . 2782 4705 Guns 14739 | 174 468 1071 . 2944 2201 483 240 1708 72 242 . . 2782 2354 Cannons 1074 | . 104 150 . 351 469 . . . . . . . . . Explosions 3963 | . . . . 152 1005 . . 868 . . . . . 1938 Melee 396 | . . . . . . . . . . . . . . 396 Ramming 52 | 3 2 . . 3 11 . . 16 . . . . . 17 Kinetic 8980 | . 104 305 . 1360 2201 483 219 1089 26 108 . . 1339 1746 Thermal 6608 | 174 468 916 . 2036 . . 21 619 46 134 . . 1443 751 Explosive 2074 | . . . . . 828 . . 868 . . . . . 378 Electromagnetic 1334 | . . . . 51 469 . . . . . . . . 814 Impact . | . . . . . . . . . . . . . . . Slashing . | . . . . . . . . . . . . . . . Piercing 396 | . . . . . . . . . . . . . . 396 Entropic 780 | . . . . . 177 . . . . . . . . 603 Highest Corruption 24 | . . . . 12 12 12 12 1 1 1 1 1 3 24 Average Corruption 6 | . . . . 6 12 12 12 1 1 1 1 1 2 10 Corruption Purged . | . . . . . . . . . . . . . . . Corruption Blocked 15 | . . . . . . . . . . . . . . 15 Effects 193 | . . . . 38 50 29 5 2 3 6 2 4 11 43 Message Errors 35 | . . . . 7 9 5 . . . 2 . 1 1 10 Matter Fused 45 | . . . . 8 12 9 1 . . 3 . 2 . 10 Heat Flow Errors 16 | . . . . 3 1 3 . . 1 . 1 . 2 5 Energy Discharges 21 | . . . . 4 5 5 . . . 1 . . 4 2 Parts Rejected 6 | . . . . . . . 1 . 1 . . . . 4 Parts Fused 2 | . . . . . 1 . 1 . . . . . . . Data Loss (minor) 20 | . . . . 4 4 3 1 . 1 . 1 1 1 4 Data Loss (major) 18 | . . . . 4 7 2 1 . . . . . 1 3 Misfires 10 | . . . . 5 4 . . . . . . . 1 . Alerts 4 | . . . . 1 1 . . 1 . . . . . 1 Misdirections 5 | . . . . . 2 . . . . . . . . 3 Weapon Failures 11 | . . . . 2 4 2 . 1 . . . . 1 1 Overload Shots 3 | . . . . . . 1 . . . . . . . 2 Overflow Damage 321 | . . . . 30 49 . . 50 . . . . . 192 Projectiles 32 | . . . . 30 2 . . . . . . . . . Explosions 241 | . . . . . 47 . . 50 . . . . . 144 Melee 48 | . . . . . . . . . . . . . . 48 Knockbacks 4 | . 3 1 . . . . . . . . . . . . Impact . | . . . . . . . . . . . . . . . Kinetic 4 | . 3 1 . . . . . . . . . . . . Secondary . | . . . . . . . . . . . . . . . Self-Inflicted Damage 484 | . . . . . 177 . . . . . . . . 307 Shots 6 | . . . . . 1 . . . . . . . . 5 Rammed 7 | 1 2 . . . 1 . . 1 . . . . . 2 Targets Rammed 14 | 2 2 . . 1 2 . . 1 . . . . . 6 Kicked 6 | . . . . 1 1 . . . . . . . . 4 Crushed 1 | 1 . . . . . . . . . . . . . . Highest Temperature 512 | 195 297 224 . 512 304 206 . 336 125 111 182 36 187 185 Average Temperature 134 | 79 119 134 . 181 131 96 . 53 62 61 105 21 94 78 Received Heat Transfer 2879 | . 225 449 . 243 972 27 9 494 . 55 . . 129 276 Effects 22 | . . . . 18 4 . . . . . . . . . Shutdowns 5 | . . . . 5 . . . . . . . . . . Energy Bleed 6 | . . . . 5 1 . . . . . . . . . Interference 8 | . . . . 5 3 . . . . . . . . . Matter Decay 1 | . . . . 1 . . . . . . . . . . Damage (minor) 2 | . . . . 2 . . . . . . . . . . Siege Activations 5 | . . . . . . 1 . 1 . . . . 1 2 Total Turns 103 | . . . . . . 7 . 27 . . . . 38 31 Longest Duration 38 | . . . . . . 7 . 27 . . . . 38 22 Martial Activations . | . . . . . . . . . . . . . . . Shielding Activations . | . . . . . . . . . . . . . . . Robots Disrupted . | . . . . . . . . . . . . . . . Combat Hostiles . | . . . . . . . . . . . . . . . Robots Corrupted 3 | . . . . . 2 . . . . . . . . 1 Combat Hostiles 3 | . . . . . 2 . . . . . . . . 1 Parts Fried 7 | . . . . . 3 . . . . . . . . 4 Impact Corruptions . | . . . . . . . . . . . . . . . Robots Melted 5 | . . 1 . 3 . . . 1 . . . . . . Combat Hostiles 5 | . . 1 . 3 . . . 1 . . . . . . Parts Melted 36 | 2 4 6 . 15 2 . . 2 . . . . 3 2 Heat Transferred 12431 | 518 1332 2111 . 4407 . . 37 814 74 185 . . 1785 1168 Parts Sabotaged . | . . . . . . . . . . . . . . . Parts Stolen . | . . . . . . . . . . . . . . . Parts Stripped . | . . . . . . . . . . . . . . . Power Chain Reactions 4 | . . . . 1 . . . . . . . . . 3 Alert | -11 -10 -10 -7 -5 -5 -5 -5 -4 -4 -4 -4 -3 -3 -2 ------- Run | Yrd Mat Sub Scr Fac Ext Cet Arc Fac Upp Upp Zhi Pro Res Res Maximum Alert Level 3 | . . . . 1 3 2 2 3 . . . . 1 2 Low Security (%) 64 | 100 100 . . 91 66 . . 6 . . . . 52 76 Level 1 17 | . . . . 8 16 . 95 27 . . . . 47 16 Level 2 11 | . . . . . 2 100 3 22 . . . . . 6 Level 3 5 | . . . . . 14 . . 42 . . . . . . Level 4 . | . . . . . . . . . . . . . . . Level 5 . | . . . . . . . . . . . . . . . High Security . | . . . . . . . . . . . . . . . Max Security . | . . . . . . . . . . . . . . . Peak Influence 1030 | 10 88 . . 239 798 667 403 1030 . . . . 322 470 Initial 426 | . . . . . 115 426 194 131 . . . . . 112 Average 204 | 2 21 . . 55 204 563 349 604 . . . . 175 183 Influence Increases 6632 | 25 204 120 . 858 1456 401 233 1427 65 20 . 15 776 1032 Destroy 0b10 Robot/C 2900 | . 120 100 . 440 640 160 80 480 40 20 . . 360 460 Destroy 0b10 Robot/NC 215 | 25 10 . . 60 10 10 5 20 . . . . 30 45 Destroy Leader 602 | . 32 20 . 124 102 . . 122 10 . . . 62 130 Allied During Kill 1255 | . . . . . 345 170 85 493 . . . . 154 8 Trap Triggered on 0b10 10 | . 10 . . . . . . . . . . . . . Successful Hack 112 | . 16 . . 22 36 . . 28 . . . . 2 8 Disable Machine 330 | . . . . 90 60 15 45 90 . . . . 15 15 Destroy Structure 878 | . 1 . . 62 218 46 18 194 . . . . 78 261 Partial Spotted 15 | . . . . 15 . . . . . . . . . . Lose Combat Pursuer 315 | . 15 . . 45 45 . . . 15 . . 15 75 105 Influence Decreases 6240 | 25 192 132 . 622 930 678 341 774 622 459 34 15 576 840 Entered New Map 1596 | . . 7 . . 121 336 291 246 382 91 34 . . 88 Time Decay 3385 | 25 192 105 . 446 446 302 50 318 230 368 . 15 436 452 Lost Part 725 | . . 20 . 176 159 . . 30 . . . . 60 280 Lost Ally 534 | . . . . . 204 40 . 180 10 . . . 80 20 Squads Dispatched 43 | . . . . 8 6 . . 10 . 1 . . 11 7 Investigation 7 | . . . . 1 1 . . 2 . . . . 2 1 Extermination 8 | . . . . 3 . . . 2 . . . . . 3 Reinforcement 16 | . . . . 2 5 . . 1 . . . . 5 3 Assault 3 | . . . . . . . . 2 . 1 . . . . Garrison 9 | . . . . 2 . . . 3 . . . . 4 . Intercept . | . . . . . . . . . . . . . . . Searches Triggered . | . . . . . . . . . . . . . . . Construction Impeded 5 | . . . . 1 3 . . . . . . . . 1 Haulers Reinforced 3 | . . . . . . . . . . . . . 3 . Active Scanning Responses . | . . . . . . . . . . . . . . . Cargo Convoy Interrupts . | . . . . . . . . . . . . . . . Stealth | -11 -10 -10 -7 -5 -5 -5 -5 -4 -4 -4 -4 -3 -3 -2 --------- Run | Yrd Mat Sub Scr Fac Ext Cet Arc Fac Upp Upp Zhi Pro Res Res Distress Signals 33 | . 4 . . 3 6 2 . 1 . . . . 8 9 Communications Jammed . | . . . . . . . . . . . . . . . Distress Signals . | . . . . . . . . . . . . . . . Times Spotted 232 | . 16 16 . 34 40 7 4 27 4 5 . 1 23 55 Peak Tracking Total 16 | . 4 3 . 6 7 5 1 7 4 9 . 1 6 16 Tactical Retreats 16 | . 1 1 . 2 3 . . . 1 . . 1 1 6 Traps | -11 -10 -10 -7 -5 -5 -5 -5 -4 -4 -4 -4 -3 -3 -2 ------- Run | Yrd Mat Sub Scr Fac Ext Cet Arc Fac Upp Upp Zhi Pro Res Res Traps Triggered 14 | . . 3 . 2 6 . . 1 . . . . 1 1 Indirectly . | . . . . . . . . . . . . . . . Trap Hack Attempts . | . . . . . . . . . . . . . . . Triggered . | . . . . . . . . . . . . . . . Disarmed . | . . . . . . . . . . . . . . . Reprogrammed 6 | . 6 . . . . . . . . . . . . . Reused 2 | . 1 . . . . . . . 1 . . . . . Traps Extracted . | . . . . . . . . . . . . . . . Installed 3 | . . . . . 1 . . . 1 . . . . 1 Triggered 2 | . 1 . . . . . . . 1 . . . . . Most Traps Carried 3 | . . 1 3 3 3 2 2 2 2 1 1 1 1 1 Machines | -11 -10 -10 -7 -5 -5 -5 -5 -4 -4 -4 -4 -3 -3 -2 ---------- Run | Yrd Mat Sub Scr Fac Ext Cet Arc Fac Upp Upp Zhi Pro Res Res Machines Disabled 24 | . . 1 . 6 5 1 3 6 . . . . 1 1 Max in Single Turn 1 | . . 1 . 1 1 1 . 1 . . . . 1 1 Garrison Access 2 | . . . . 2 . . . . . . . . . . Machines Repaired . | . . . . . . . . . . . . . . . Machines Dismantled . | . . . . . . . . . . . . . . . Machines Sabotaged . | . . . . . . . . . . . . . . . Overloaded Fab Kills . | . . . . . . . . . . . . . . . Hacking | -11 -10 -10 -7 -5 -5 -5 -5 -4 -4 -4 -4 -3 -3 -2 --------- Run | Yrd Mat Sub Scr Fac Ext Cet Arc Fac Upp Upp Zhi Pro Res Res Machines Accessed 49 | . 6 2 2 8 8 1 . 5 . 2 4 . 8 3 Terminals 22 | . 6 . . 4 7 1 . 3 . . . . 1 . Fabricators 1 | . . . . . . . . . . . . . . 1 Repair Stations 3 | . . . . 1 . . . . . . . . 2 . Recycling Units 4 | . . . . . 1 . . 1 . . . . 2 . Scanalyzers 4 | . . . . 1 . . . . . . . . 2 1 Garrison Access 5 | . . . . 2 . . . 1 . . . . 1 1 Total Hacks 119 | . 23 6 2 16 15 2 . 10 . 6 16 . 16 7 Successful 65 | . 9 6 2 8 7 . . 4 . 6 16 . 2 5 Failed 53 | . 13 . . 8 8 2 . 6 . . . . 14 2 Catastrophic 15 | . 2 . . 4 2 . . 1 . . . . 6 . Database Lockouts 1 | . 1 . . . . . . . . . . . . . Manual 20 | . 8 . . 2 1 1 . 3 . . . . 4 1 Terminals 57 | . 23 . . 10 14 2 . 7 . . . . 1 . Fabricators 3 | . . . . . . . . . . . . . . 3 Repair Stations 7 | . . . . 2 . . . . . . . . 5 . Recycling Units 6 | . . . . . 1 . . 1 . . . . 4 . Scanalyzers 8 | . . . . 1 . . . . . . . . 5 2 Garrison Access 8 | . . . . 3 . . . 2 . . . . 1 2 Terminal Hacks 50 | . 8 6 2 4 6 . . 2 . 6 16 . . . Record 15 | . . 5 1 . . . . . . 5 4 . . . Part Schematic 4 | . . . . . . . . . . . 4 . . . Robot Analysis 6 | . 2 . . . . . . . . . 4 . . . Prototype ID Bank 6 | . 1 . . . . . . 1 . . 4 . . . Open Door 6 | . . . . . 5 . . . . 1 . . . . Emergency Access Points 1 | . 1 . . . . . . . . . . . . . Alert Level 2 | . . . . 1 . . . 1 . . . . . . Locate Traps 3 | . 1 . . 1 1 . . . . . . . . . Reprogram Traps 1 | . 1 . . . . . . . . . . . . . Hauler Manifests 2 | . 1 . . 1 . . . . . . . . . . Zone Layout 2 | . 1 . . 1 . . . . . . . . . . Proto ID Catalog 2 | . . 1 1 . . . . . . . . . . . Fabricator Hacks 2 | . . . . . . . . . . . . . . 2 Network Status 1 | . . . . . . . . . . . . . . 1 Load Schematic 1 | . . . . . . . . . . . . . . 1 Repair Station Hacks 3 | . . . . 2 . . . . . . . . 1 . Scan Component 2 | . . . . 1 . . . . . . . . 1 . Repair 1 | . . . . 1 . . . . . . . . . . Recycling Unit Hacks . | . . . . . . . . . . . . . . . Scanalyzer 2 | . . . . . . . . . . . . . . 2 Insert Component 1 | . . . . . . . . . . . . . . 1 Analyze 1 | . . . . . . . . . . . . . . 1 Garrison Access Hacks 2 | . . . . 2 . . . . . . . . . . Seal Access 2 | . . . . 2 . . . . . . . . . . Unauthorized Hacks 6 | . 1 . . . 1 . . 2 . . . . 1 1 Terminals 2 | . 1 . . . . . . 1 . . . . . . Track 1 | . 1 . . . . . . . . . . . . . Botnet 1 | . . . . . . . . 1 . . . . . . Fabricators 1 | . . . . . . . . . . . . . . 1 Recompile 1 | . . . . . . . . . . . . . . 1 Repair Stations . | . . . . . . . . . . . . . . . Recycling Units 3 | . . . . . 1 . . 1 . . . . 1 . Scrapoids 3 | . . . . . 1 . . 1 . . . . 1 . Scanalyzers . | . . . . . . . . . . . . . . . Garrison Access . | . . . . . . . . . . . . . . . Data Cores Recovered . | . . . . . . . . . . . . . . . Used . | . . . . . . . . . . . . . . . Hacking Detections 31 | . 5 . . 6 6 1 . 4 . . . . 8 1 Full Trace Events 2 | . . . . . . . . 1 . . . . 1 . Feedback Events . | . . . . . . . . . . . . . . . Feedback Blocked . | . . . . . . . . . . . . . . . Robot Schematics Acquired . | . . . . . . . . . . . . . . . Robots Built . | . . . . . . . . . . . . . . . Authchips . | . . . . . . . . . . . . . . . Time . | . . . . . . . . . . . . . . . Total Robot Build Rating . | . . . . . . . . . . . . . . . Part Schematics Acquired 5 | . . . . . . . . . . . 4 . . 1 Parts Built . | . . . . . . . . . . . . . . . Authchips . | . . . . . . . . . . . . . . . Time . | . . . . . . . . . . . . . . . Total Part Build Rating . | . . . . . . . . . . . . . . . Parts Repaired 1 | . . . . 1 . . . . . . . . . . Time 19 | . . . . 19 . . . . . . . . . . Parts Recycled . | . . . . . . . . . . . . . . . Recycled Matter . | . . . . . . . . . . . . . . . Retrieved Matter . | . . . . . . . . . . . . . . . Retrieved Components . | . . . . . . . . . . . . . . . Parts Scanalyzed 1 | . . . . . . . . . . . . . . 1 Part Schematics Acquired 1 | . . . . . . . . . . . . . . 1 Parts Damaged . | . . . . . . . . . . . . . . . Bothacking | -11 -10 -10 -7 -5 -5 -5 -5 -4 -4 -4 -4 -3 -3 -2 ------------ Run | Yrd Mat Sub Scr Fac Ext Cet Arc Fac Upp Upp Zhi Pro Res Res Used RIF Installer . | . . . . . . . . . . . . . . . Robots Hacked . | . . . . . . . . . . . . . . . Non-combat . | . . . . . . . . . . . . . . . Combat . | . . . . . . . . . . . . . . . Robot Hacks Applied . | . . . . . . . . . . . . . . . Relay Couplers Released 9 | . . . . 2 . . . 3 . . . . . 4 Machine Destruction 2 | . . . . 2 . . . . . . . . . . Programmers 7 | . . . . . . . . 3 . . . . . 4 Fabnet Peak Effective % . | . . . . . . . . . . . . . . . Robots Rewired 13 | . . . . . 13 . . . . . . . . . Allies Hacked 1 | . . . . . . . . 1 . . . . . . Hacks Repelled 1 | . . . . . . . . . . . . . . 1 Allies | -11 -10 -10 -7 -5 -5 -5 -5 -4 -4 -4 -4 -3 -3 -2 -------- Run | Yrd Mat Sub Scr Fac Ext Cet Arc Fac Upp Upp Zhi Pro Res Res Total Allies 42 | . . . . . 27 5 . 5 . . . . 5 . Largest Group 19 | . . . . . 13 16 16 19 1 . . . 5 1 Highest-Rated Group 1048 | . . . . . 630 996 996 1048 89 . . . 320 64 Highest-Rated Ally 159 | . . . . . 159 152 152 96 89 . . . 64 64 Total Orders 26 | . . . . . . . . 3 16 5 . 2 . . STAY 3 | . . . . . . . . 1 2 . . . . . ROAM 1 | . . . . . . . . . 1 . . . . . FOLLOW 2 | . . . . . . . . 2 . . . . . . EXPLORE 11 | . . . . . . . . . 7 3 . 1 . . RETURN 9 | . . . . . . . . . 6 2 . 1 . . Ally Attacks 444 | . . . . . 156 60 28 137 . . . . 59 4 Total Damage 10322 | . . . . . 2838 1685 570 3978 . . . . 1182 69 Kills 56 | . . . . . 15 7 4 22 . . . . 8 . Allies Corrupted 2 | . . . . . 1 . . . . . . . . 1 Allies Melted 1 | . . . . . . . . 1 . . . . . . Intel | -11 -10 -10 -7 -5 -5 -5 -5 -4 -4 -4 -4 -3 -3 -2 ------- Run | Yrd Mat Sub Scr Fac Ext Cet Arc Fac Upp Upp Zhi Pro Res Res Active Infowar (turns) 9165 | 73 709 1928 595 1712 748 . . 50 477 735 . 427 798 913 Sensors 738 | . . . . 55 . . . 50 . 9 . . . 624 Terrain 1700 | . . . 595 357 748 . . . . . . . . . Seismic 7056 | 73 709 1928 . 1551 78 . . . 477 726 . 427 798 289 T.N.C. 132 | . . . . 132 . . . . . . . . . . Jamming 177 | . . . . . . . . . . . . 81 96 . Robot Analysis Total 6 | . 2 . . . . . . . . . 4 . . . Derelict Logs Recovered 9 | . . 2 4 . . . . . 1 2 . . . . Drone Launches 8 | . . . . . . . . . 4 3 . 1 . . Drone Recoveries 7 | . . . . . . . . . 3 3 . 1 . . Exploration | -11 -10 -10 -7 -5 -5 -5 -5 -4 -4 -4 -4 -3 -3 -2 ------------- Run | Yrd Mat Sub Scr Fac Ext Cet Arc Fac Upp Upp Zhi Pro Res Res Turns Passed 14695 | 152 1020 2636 2098 1805 1112 672 111 718 484 845 288 427 1204 1123 Spaces Moved 8556 | 67 551 1698 1697 1040 594 354 40 358 202 452 163 242 614 484 Core 23 | 3 . . . . . . . . . . . . . 20 Treads 4077 | 64 551 763 . . . 234 40 358 202 452 163 242 614 394 Legs 481 | . . . . 70 348 35 . . . . . . . 28 Wheels 3023 | . . 935 1697 262 2 85 . . . . . . . 42 Hover 952 | . . . . 708 244 . . . . . . . . . Flight . | . . . . . . . . . . . . . . . Fastest Speed 50 | 50 160 107 107 53 53 120 160 160 160 160 160 160 160 50 Average Speed 141 | 155 160 138 122 133 120 160 160 160 160 160 160 160 160 149 Slowest Speed 270 | 160 160 160 125 270 260 240 160 160 160 160 160 160 165 170 Overloaded Moves . | . . . . . . . . . . . . . . . Propulsion Burnouts . | . . . . . . . . . . . . . . . Robots Hopped . | . . . . . . . . . . . . . . . Potential Cave-ins 7 | . . . . . . . . . . . . 1 . 6 Cave-ins Triggered . | . . . . . . . . . . . . . . . Teleports 1 | . . . . . . . . . . . . . . 1 Exploration Rate (%) 53 | 5 79 86 92 28 74 79 67 9 70 60 60 54 21 18 Regions Visited 14 Branch Regions 9 Pre-discovered Areas 4 | . . 1 . . . . . . . . 3 . . . Known Exits Taken 6 | . . . . . . . . 1 1 1 1 1 1 . Unknown Exits Taken 8 | 1 1 1 1 1 1 1 1 . . . . . . . Scrap Searched 9 | . . . 3 . . . . . 2 3 . 1 . . Spaces Dug 81 | . . . . 7 . . . 1 . 11 . 5 4 53 Terrain Destroyed 372 | . . . . 39 129 1 5 53 5 12 . 14 15 99 Melee 14 | . . . . 3 . . . . . . . . . 11 Projectile 176 | . . . . 32 52 1 5 16 5 12 . 14 15 24 AOE 181 | . . . . 4 77 . . 37 . . . . . 63 Terrain Rammed . | . . . . . . . . . . . . . . . Walls Destroyed . | . . . . . . . . . . . . . . . Machines Disabled . | . . . . . . . . . . . . . . . Actions | -11 -10 -10 -7 -5 -5 -5 -5 -4 -4 -4 -4 -3 -3 -2 --------- Run | Yrd Mat Sub Scr Fac Ext Cet Arc Fac Upp Upp Zhi Pro Res Res Total 10289 | 91 640 1857 1725 1341 875 449 74 429 357 552 192 265 717 725 Wait 627 | . 34 42 . 115 23 45 28 5 146 81 . 13 10 85 Move 8542 | 66 550 1697 1696 1039 593 353 39 357 201 451 162 241 613 484 Hop . | . . . . . . . . . . . . . . . Pick Up 104 | 6 11 11 13 19 5 5 . 10 1 2 5 . 5 11 Fast Attach 103 | 7 1 2 1 34 16 8 1 2 1 . 10 . 8 12 Attach 58 | . . 5 2 13 10 1 . 6 . . 1 . 9 11 Detach 22 | . 1 1 1 3 8 . . 1 . . . . 6 1 Swap 107 | . 8 33 . 17 3 7 . 4 3 10 . 4 3 15 Drop 127 | . 8 9 12 27 5 22 . 7 2 1 14 . 5 15 Fire 388 | 10 25 39 . 70 57 8 6 36 2 7 . 7 58 63 Melee 42 | . . 18 . 3 . . . . . . . . . 21 Ram 3 | . . . . . 1 . . . . . . . . 2 Kick 6 | . . . . 1 1 . . . . . . . . 4 Crush 5 | 2 2 . . . . . . 1 . . . . . . Escape Stasis 46 | . . . . . 46 . . . . . . . . . Rewire 106 | . . . . . 106 . . . . . . . . . Trap 3 | . . . . . 1 . . . 1 . . . . 1 Miscellaneous . | . . . . . . . . . . . . . . . Route ------- -11/Scrapyard -10/Materials (discovered 4 exits: [*Mat x2] / [*Min] / *Sub) -10/Subcaves (discovered 4 exits: [*Mat x2] / Rec / *Scr) -7/Scraptown -5/Factory (discovered 2 exits: [*Upp] / *Ext) -5/Extension (discovered 2 exits: *Fac / *Cet) -5/Cetus (discovered 2 exits: *Fac / [*Arc]) -5/Archives -4/Factory (discovered 2 exits: *Res / *Upp) -4/Upper Caves -4/Upper Caves (discovered 2 exits: *Res / *Zhi) -4/Zhirov -3/Proximity Caves -3/Research (discovered 3 exits: *Res x2 / Qua) -2/Research History --------- Turn | Location | Event 33 | -11/Scrapyard | Discovered new exit (range 15) 153 | -11/Scrapyard | Entered Materials 315 | -10/Materials | Build established: Mutant 459 | -10/Materials | Discovered new exit (range 12) 518 | -10/Materials | Discovered new exit (range 14) 588 | -10/Materials | Discovered new exit (range 7) 954 | -10/Materials | Central database locked down 1120 | -10/Materials | Discovered new exit (range 15) 1173 | -10/Materials | Entered Subcaves 1174 | -10/Subcaves | Approached by a straggling Scientist 1527 | -10/Subcaves | Scientist uncovered a shortcut to Scraptown 1624 | -10/Subcaves | Discovered new exit (range 8) 2136 | -10/Subcaves | A swath of the cavern ceiling suddenly collapsed 2282 | -10/Subcaves | Shifting Twisted Machinery released Sub. Laser 2289 | -10/Subcaves | Shifting Twisted Machinery released Sub. Power Source 2413 | -10/Subcaves | Discovered new exit (range 12) 2430 | -10/Subcaves | Shifting Twisted Machinery released Sub. Beam Cannon 2436 | -10/Subcaves | Shifting Twisted Machinery released Sub. Monowheel 2447 | -10/Subcaves | Core integrity fell below 50% 2517 | -10/Subcaves | Learned Materials emergency access door positions 2612 | -10/Subcaves | Visited 4L-MR0's lab 2632 | -10/Subcaves | Found Tower Shield 2853 | -10/Subcaves | Visited Clippyterm 2857 | -10/Subcaves | Identified exit to Recycling 2857 | -10/Subcaves | Learned Research security intel 2969 | -10/Subcaves | Build established: Scavenger-Mutant 3095 | -10/Subcaves | Disturbed a concealed Subdweller 3195 | -10/Subcaves | A swath of the cavern ceiling suddenly collapsed 3351 | -10/Subcaves | Build established: Mutant 3386 | -10/Subcaves | Learned location of Zion (-6) 3386 | -10/Subcaves | Met a Zionite searching for "candidates" 3459 | -10/Subcaves | Learned Materials terminal intel 3611 | -10/Subcaves | Shifting Twisted Machinery released Sub. Optics 3809 | -10/Subcaves | Entered Scraptown 4043 | -7/Scraptown | Scanned Subdweller tech in exchange for log data 4046 | -7/Scraptown | Learned Research garrison access intel 4047 | -7/Scraptown | Learned Research stockpile data 4048 | -7/Scraptown | Learned Research interactive machine intel 4083 | -7/Scraptown | Visited SPCMW 4178 | -7/Scraptown | Visited Shadow of the Wyrm 4188 | -7/Scraptown | Visited Supply Room 4421 | -7/Scraptown | Visited Assassins FH 4431 | -7/Scraptown | Visited Symbiants 4454 | -7/Scraptown | Visited Junk Repository 4476 | -7/Scraptown | Visited UFD Registry 4476 | -7/Scraptown | Registered with UFD as "Cargotube" 4529 | -7/Scraptown | Visited Science Guys 4559 | -7/Scraptown | Visited LU-1G1's Boring Crew 4626 | -7/Scraptown | Visited Scrap Suit Storage 4651 | -7/Scraptown | Visited Modified Component R&D 4679 | -7/Scraptown | Visited Supply Room 4698 | -7/Scraptown | Visited Chapter 10 4729 | -7/Scraptown | Visited Junk Repository 4769 | -7/Scraptown | Visited A0-MCA Data Center 4778 | -7/Scraptown | Given a C- rating by A0-MCA 4800 | -7/Scraptown | Visited Curators Association 4895 | -7/Scraptown | Delivered Scrap Shield to a Scientist 5216 | -7/Scraptown | Found Scrap Suit 5901 | -7/Scraptown | Discovered new exit (range 5) 5907 | -7/Scraptown | Entered Factory 5907 | -5/Factory | Evolved 10 slots: Power x1, Propulsion x3, Utility x5, Weapon x1 5915 | -5/Factory | Attached Tower Shield, gained temporary slots: Power, Propulsion x2, Utility x2, Weapon x2 6004 | -5/Factory | Found Imp. Powered Armor 6007 | -5/Factory | Found Imp. Powered Armor 6010 | -5/Factory | Found Imp. Powered Armor 6013 | -5/Factory | Found Imp. Powered Armor 6015 | -5/Factory | Found Imp. Powered Armor 6018 | -5/Factory | Found Imp. Powered Armor 6101 | -5/Factory | Garrison activated, responded to threat 6387 | -5/Factory | Lost 7 parts (1p3n2u1w) 6473 | -5/Factory | Discovered new exit (range 4) 6676 | -5/Factory | Lost 7 parts (2p1n3u1w) 6745 | -5/Factory | Lost 3 parts (2n1w) 7170 | -5/Factory | Build established: Scavenger-Mutant 7477 | -5/Factory | Repaired Lgt. Nuclear Core 7499 | -5/Factory | System corruption reached 10% 7586 | -5/Factory | Discovered new exit (range 12) 7712 | -5/Factory | Entered Extension 7721 | -5/Extension | Disrupted transfer network 7829 | -5/Extension | Lost 9 parts (2p4n3u) 8002 | -5/Extension | Lost 3 allies 8030 | -5/Extension | Rescued a captive Derelict 8031 | -5/Extension | Rescued a captive Derelict 8175 | -5/Extension | Spotted B-75 Beast 8200 | -5/Extension | Allies destroyed B-75 Beast 8213 | -5/Extension | Spotted B-75 Beast 8223 | -5/Extension | Lost 5 allies 8236 | -5/Extension | Core integrity fell below 50% 8257 | -5/Extension | Allies destroyed B-75 Beast 8298 | -5/Extension | Lost 8 parts (1p1n3u3w) 8402 | -5/Extension | Rescued A7 8471 | -5/Extension | Rescued a captive Derelict 8472 | -5/Extension | Rescued a captive Derelict 8556 | -5/Extension | Rescued a captive Derelict 8558 | -5/Extension | Rescued a captive Derelict 8572 | -5/Extension | Build established: Scavenger-Tank 8581 | -5/Extension | Rescued a captive Derelict 8608 | -5/Extension | Scrapoid reinforcements arrived 8694 | -5/Extension | Rescued a captive Derelict 8789 | -5/Extension | Discovered new exit (range 10) 8790 | -5/Extension | Discovered new exit (range 6) 8809 | -5/Extension | Found Powered Armor 8824 | -5/Extension | Entered Cetus 8824 | -5/Cetus | Accompanied by 13 allies (A7) 8829 | -5/Cetus | Acquired a Cetus Manufacturing Module code from A7 8838 | -5/Cetus | Spotted Cetus Guard 8838 | -5/Cetus | Spotted Cetus Guard 8845 | -5/Cetus | Allies destroyed Cetus Guard 8846 | -5/Cetus | Allies destroyed Cetus Guard 8957 | -5/Cetus | Started Cetus Manufacturing Module 8969 | -5/Cetus | Escorted A7 to Cetus Mainframe 8982 | -5/Cetus | Manufactured an Enhanced Grunt 9007 | -5/Cetus | Manufactured an Enhanced Grunt 9015 | -5/Cetus | Discovered new exit (range 15) 9032 | -5/Cetus | Manufactured an Enhanced Grunt 9043 | -5/Cetus | Spotted Cetus Guard 9043 | -5/Cetus | Spotted Cetus Guard 9047 | -5/Cetus | Spotted Cetus Guard 9047 | -5/Cetus | Spotted Cetus Guard 9057 | -5/Cetus | Manufactured an Enhanced Grunt 9058 | -5/Cetus | Destroyed Cetus Guard 9059 | -5/Cetus | Allies destroyed Cetus Guard 9061 | -5/Cetus | Destroyed Cetus Guard 9064 | -5/Cetus | Destroyed Cetus Guard 9081 | -5/Cetus | Discovered new exit (range 15) 9082 | -5/Cetus | Manufactured an Enhanced Grunt 9089 | -5/Cetus | Met Revision 17 9496 | -5/Cetus | Entered Archives 9496 | -5/Archives | Accompanied by 16 allies (A7) 9501 | -5/Archives | Received a hacking code to weaken MAIN.C 9548 | -5/Archives | Discovered new exit (range 14) 9607 | -5/Archives | Entered Factory 9607 | -4/Factory | Accompanied by 14 allies 9607 | -4/Factory | Evolved 2 slots: Propulsion x1, Weapon x1 9648 | -4/Factory | Scrapoids reinforcements arrived? 9687 | -4/Factory | Discovered new exit (range 15) 9723 | -4/Factory | Identified exit to Research 9838 | -4/Factory | Garrison activated, responded to threat 9857 | -4/Factory | First assault squad dispatched 9875 | -4/Factory | Lost 3 allies 9915 | -4/Factory | Lost 5 allies 9981 | -4/Factory | Spotted B-86 Titan 10053 | -4/Factory | Lost 5 allies 10071 | -4/Factory | Destroyed B-86 Titan 10078 | -4/Factory | Lost 3 parts (1u2w) 10317 | -4/Factory | Discovered new exit (range 5) 10323 | -4/Factory | Identified exit to Upper Caves 10325 | -4/Factory | Entered Upper Caves 10325 | -4/Upper Caves | Accompanied by 1 ally 10327 | -4/Upper Caves | UFD Scientist delivered a prototype 10497 | -4/Upper Caves | Learned 8 Research zone layouts 10743 | -4/Upper Caves | Discovered new exit (range 25) 10807 | -4/Upper Caves | Identified exit to Upper Caves 10809 | -4/Upper Caves | Entered another Upper Caves area 10848 | -4/Upper Caves | Learned Research interactive machine intel 10952 | -4/Upper Caves | Discovered exit to Research (range 12) 11335 | -4/Upper Caves | Learned Research garrison access intel 11379 | -4/Upper Caves | Entered an active Warlord outpost 11394 | -4/Upper Caves | Learned Factory emergency access door positions 11394 | -4/Upper Caves | Learned Armory security intel 11571 | -4/Upper Caves | Discovered new exit (range 14) 11590 | -4/Upper Caves | Identified exit to Zhirov 11638 | -4/Upper Caves | Attracted the attention of an 0b10 outpost 11654 | -4/Upper Caves | Entered Zhirov 11657 | -4/Zhirov | Discovered new exit (range 3) 11685 | -4/Zhirov | Met Zhirov 11716 | -4/Zhirov | Learned location of Quarantine (-3) 11716 | -4/Zhirov | Learned location of Testing (-2) 11716 | -4/Zhirov | Learned location of Command (-1) 11730 | -4/Zhirov | Zhirov requested help retrieving the SGEMP Prototype 11763 | -4/Zhirov | Found Alien Artifact 11763 | -4/Zhirov | Identified Integrated Dissipator 11763 | -4/Zhirov | Installed Integrated Dissipator, increased core heat dissipation (+20) 11863 | -4/Zhirov | Found Alien Artifact 11940 | -4/Zhirov | Identified exit to Proximity Caves 11942 | -4/Zhirov | Entered Proximity Caves 12315 | -3/Proximity Caves | Discovered exit to Research (range 30) 12369 | -3/Proximity Caves | Entered Research 12369 | -3/Research | Evolved 2 slots: Utility x2 12370 | -3/Research | Identified exit to Quarantine 12371 | -3/Research | Identified exit to Research 12374 | -3/Research | Loaded intel: 47 interactive machine locations 12375 | -3/Research | Loaded intel: 4 garrison access locations 12421 | -3/Research | Garrison activated, responded to threat 12504 | -3/Research | Garrison activated, responded to threat 12569 | -3/Research | Revision forces began assault on 0b10 12708 | -3/Research | Met up with Revision 17++ 12868 | -3/Research | Scrapoid reinforcements arrived 12896 | -3/Research | Discovered exit to Research (range 14) 13069 | -3/Research | Research terminal network offline 13224 | -3/Research | Lost 5 allies 13573 | -3/Research | Entered another Research area 13573 | -2/Research | Accompanied by 1 ally 13573 | -2/Research | Evolved 2 slots: Utility x1, Weapon x1 13574 | -2/Research | Loaded intel: 43 interactive machine locations 13575 | -2/Research | Loaded intel: 4 garrison access locations 13987 | -2/Research | System corruption reached 10% 14223 | -2/Research | Spotted B-90 Cyclops 14501 | -2/Research | Lost 4 parts (1p2u1w) 14521 | -2/Research | Identified Transdimensional Reconstructor 14521 | -2/Research | Warped through subspace 14615 | -2/Research | Lost 17 parts (1p3n8u5w) 14671 | -2/Research | Core integrity fell below 50% 14689 | -2/Research | Core integrity fell below 20% 14696 | -2/Research | Destroyed by P-80 Master with Gamma Rifle Last Messages --------------- 14667_ Adv. Heavy Siege Treads destroyed. 14667_ Imp. Corruption Screen intercepted 1% system corruption. 14667_ Imp. Corruption Screen expended. 14668_ P-80 Master resets P-80 Master, system corruption cleaned. 14670_ Biometal Leg destroyed. 14673_ P-80 Master resets P-80 Master, system corruption cleaned. 14680_ System corrupted: Matter fused (-7). 14681_ P-80 Master suffers critical hit (Impale). 14681_ Destroyed Adv. Remote Datajack. 14681_ P-80 Master resets P-80 Master, system corruption cleaned. 14682_ Enh. Force Lance destroyed. 14686_ Slammed into T-07 Excavator. 14689_ C-30 ARC bursts open, deploying its payload. 14689_ P-80 Master unfolds itself. 14689_ Penetrated by Slug. 14689_ Critical hit (Destroy). 14689_ Hds. Centrium Wheel destroyed. 14690_ Penetrated by Slug. 14690_ W-44 Eye sends out distress signal. 14692_ K-01 Serf collects debris. Map ----- +----------------------------------------------------+ | ?????????????????????????????????????????????????? | | ?????????????????????????????????????????????????? | | ?????"""?????????????????????????????????????????? | | ??????R"?????????????????????????????????????????? | | ?????"""?????????????????????????????????????????? | | ?????????????????????????????????????????????????? | | ?????????????????????????????????????????????????? | | ?????????????????????????????????????????????????? | | ?????????????????????????????????????????????????? | | ?????????????????????????????????????????????????? | | ?????????????????????????????????????????????????? | | ?????????????????????????????????????????????????? | | ?????????????????????????????????????????????????? | | ??????????????"""????????????????????????????????? | | ??????????????"T"????????????????????????????????? | | ?????????????????????????????????????????????????? | | ?????????????????????????????????????????????????? | | ???????????????????#?????????????????????????????? | | ???????????????????+ ????????????????????????????? | | ???????????????????# ??????????????????????? #???? | | ???????????????????# ????????????????????? #???? | | ???????????????????# ??????????????????? #???? | | ???????????????????# ????????????????? #??"" | | ???????????????????# p############+#### #??"" | | ???????????????????# w +???? | | ???????????????????# @ pk #???? | | ???????????????????# #???? | | ???????????????????# p #???? | | ????????????????################## ########???? | | ????????????????# # #??"""""???? | | ????????????????# # #??""R""???? | | ????????????????# # +???"?"????? | | ????????????????# + #??????????? | | ????????????????# # #??????????? | | ????????????????# # #??????????? | | ????????????????# # #??????????? | | ????????????????# # #??????????? | | ????????????????# # #??????????? | | ????????????????############# #### #??????????? | | ?????????????????????######## #### #??????????? | | ?????????????????????# # #??????????? | | ?????????????????????# # ##?????????? | | ?????????????????????#= "" # T#?????????? | | ?????????????????????# """ # #?????????? | | ????????????????????## [#= ##?????????? | | ?????????????????# + !=+% #??????????? | | ?????????????????????# * |#! #??????????? | | ?????????????????????########### # ###########? | | ????????????????????????# # # #? | | ????????????????????????# # # #? | +----------------------------------------------------+ Best States ------------- Heat Dissipation 126 Energy Generation 45 Energy Capacity 600 Matter Stores 300 Matter Capacity 300 Sight Range 16 Robot Scan Range 18 Terrain Scan Range 16 Terrain Scan Density 10 Jamming Range 14 Additional Mass Support 12 Base Temperature (-) 100 Corruption Block 14 Armor Coverage 2400 Point Defense Rating 240 Evasion (%) 55 Targeting Accuracy 6 Recoil Reduction 6 Offensive Hacking 10 Defensive Hacking 14 Authchip Count 1 Item Schematics ----------------- Assault Drone Bay | -4/Zhirov | Free Exp. Heat Sink | -4/Zhirov | Free Exp. Optical Array | -4/Zhirov | Free Imp. Arc Thrower | -4/Zhirov | Free Centrium Heavy Treads | -2/Research | Scanalyzed Robot Schematics ------------------ None Fabricated ------------ Nothing Repaired ---------- Lgt. Nuclear Core | 2% | -5/Factory Alien Tech Used ----------------- Integrated Dissipator Transdimensional Reconstructor Achievements -------------- None Challenges ------------ None Game ------ Seed CatalystBlastArchive Manual? 0 Play Time 02:37:49 Cumulative 305.2 hours Start 2025.05.22 @ 13:23:02 End 2025.05.28 @ 20:46:17 Sessions 5 Manual Loads 0 Difficulty Rogue Special Mode None Game No. 106 Rogue 105 Adventurer 1 Explorer 0 Win Type - Total 9 Types 8/0/1/0/0/0/0/0/0/0 Lore% 72 Gallery% 73 Achievement% 65 Wizard Run 0 Options --------- Layout 0 ASCII 1 Keyboard 1 Movement Vi Keybinds 0 Fullscreen 2 Font 36/Terminus++ Map View 76x50 Zoom Use 0% Tactical HUD 1 Map Filters NONE Filters NONE Steam 0 RUN: 1328ffb9-ae09-422f-b61d-34087c192817